Workbook

Sheet READ ME
C18: Read Me Sheet
C20: Introduction
C22: This tool calculates the required power to cool different products from a given to a desired temperature and gives an economic analysis. Four example systems (described under http://solar-cooling-engineering.com/example-systems ) can be selected, data will automatically be filled in. It is also possible, to design an own system.
C28: Tips & Tricks
C37: Overview of the following sheets
C39: 1. Geographic Data | F39: For adding basic site information: ambient temperatures or solar radiation.
C41: 2. Input | F41: For adding data about the product to be cooled under given conditions
C43: 3. Output | F43: For an overview of the results
C45: Calculation Sheet (Hidden) | F45: All calculations are done within this sheet
C47: Systems Table (Hidden) | F47: Contains example values of the three sample systems
C50: Additional information
C52: This tool was created by the solar cooling group of the Institute of Agricultural Engineering ( Tropics/Subtropics Department) of the University of Hohenheim, Germany.
C57: In cooperation with

Sheet 1 Geographic Data
D3: 1 Geographic Data
B7: January | C7: February | D7: March | E7: April | F7: May | G7: June | H7: July | I7: August | J7: September | K7: October | L7: November | M7: December
A8: Mean daily temperature [°C]: | B8: 25 | C8: 26 | D8: 26 | E8: 26 | F8: 25 | G8: 23 | H8: 22 | I8: 23 | J8: 24 | K8: 25 | L8: 25 | M8: 25
A9: Solar irradiation [kWh/m² day]: | B9: 6.2 | C9: 6.6 | D9: 6 | E9: 5.3 | F9: 4.6 | G9: 4.3 | H9: 4.4 | I9: 4.7 | J9: 5.6 | K9: 5.9 | L9: 5.6 | M9: 5.8
A11: Use to obtain indicative monthly irradiation and temperature data for the site: | F11: www.worldclimate.com | J11: www.sdwebx.worldbank.org/climateportal

Sheet 2 Input
B3: Input of parameters
D11: Select System: | E11: Battery-free refrigerator
B14: Product information | E14: =IF(E11='Systems Table'!$D$7, "Own system data",'Systems Table'!D9&" preset data") -> Battery-free refrigerator preset data | J14: =IF(E11='Systems Table'!D7, "Please put in data","Only required for own system design") -> Only required for own system design
B16: Total mass to be cooled | E16: Mass = | F16: ='Systems Table'!N18 -> 12 | G16: kg or l | J16: Mass = | K16: 10 | L16: kg or l
B17: Moisture content of the product | E17: MC = | F17: ='Systems Table'!N19 -> 100 | G17: % wet based | J17: MC = | K17: 100 | L17: % wet based
B18: or Heat capacity of the product | E18: cp = | F18: ='Systems Table'!N20 -> 0 | G18: kJ/kg K | J18: cp = | K18: 0 | L18: kJ/kg K
B21: Temperature information
B23: Initial temperature of the product | E23: Ti = | F23: ='Systems Table'!N25 -> 25 | G23: °C | J23: Ti = | K23: 25 | L23: °C
B24: Final temperature of the product | E24: Tm = | F24: ='Systems Table'!N26 -> 4 | G24: °C | J24: Tm = | K24: 4 | L24: °C
B25: Time to cool down the product | E25: t = | F25: ='Systems Table'!N27 -> 8 | G25: h | J25: t = | K25: 10 | L25: h
B26: How often do you cool down the product | F26: ='Systems Table'!N28 -> 30 | G26: per month | K26: 30 | L26: per month
B29: System information
B31: Batteries | F31: ='Systems Table'!N32 -> No | K31: Yes
B32: Autonomy of the system | F32: ='Systems Table'!N33 -> 1 | G32: =IF(K31="YES","days","") -> days | K32: 1 | L32: =IF(K31="YES","days","") -> days
B33: System losses | F33: ='Systems Table'!N34 -> 30 | G33: % | K33: 25 | L33: %
B35: Isolation material
B37: Area of the cooling room | E37: A = | F37: ='Systems Table'!N38 -> 0.9 | G37: m² | J37: A = | K37: 2 | L37: m²
B38: Thermal conductivity of insulation | E38: k / l = | F38: ='Systems Table'!N39 -> 0.035 | G38: W/m K | J38: k / l = | K38: 0.035 | L38: W/m K
B39: Thickness of insulation | E39: L = | F39: ='Systems Table'!N40 -> 0.06 | G39: m | J39: L = | K39: 0.1 | L39: m
B42: Economic information
B44: Currency used for calculation | F44: ='Systems Table'!N45 -> € | K44: $
B45: Specific cost of PV | F45: ='Systems Table'!N46 -> 1.1 | G45: =F44&"/Wp" -> €/Wp | K45: 1.1 | L45: =K44&"/Wp" -> $/Wp
B46: PV lifetime | F46: ='Systems Table'!N47 -> 21 | G46: years | K46: 21 | L46: years
B47: Specif cost of battery | F47: ='Systems Table'!N48 -> 2 | G47: =F44&"/Ah@12V" -> €/Ah@12V | K47: 2 | L47: =K44&"/Ah@12V" -> $/Ah@12V
B48: Battery lifetime | F48: ='Systems Table'!N49 -> 5 | G48: years | K48: 4 | L48: years
B49: Cost of solar cooling unit | F49: ='Systems Table'!N50 -> 650 | G49: =F44 -> € | K49: 650 | L49: =K44 -> $
B50: Solar cooling unit lifetime | F50: ='Systems Table'!N51 -> 12 | G50: years | K50: 12 | L50: years
B51: Material & construction costs for cooling box | F51: ='Systems Table'!N52 -> 250 | G51: =F44 -> € | K51: 300 | L51: =K44 -> $
B52: Maintenance costs per year | F52: ='Systems Table'!N53 -> 25 | G52: =F44&"/year" -> €/year | K52: 30 | L52: =K44&"/year" -> $/year
B54: Additional income per product unit | F54: ='Systems Table'!N54 -> 0.09 | G54: =F44&"/"&G16 -> €/kg or l | K54: 0.07 | L54: =F44&"/"&G16 -> €/kg or l
B55: Additional income per month | F55: ='Systems Table'!N55 -> 0 | G55: =F44&"/month" -> €/month | K55: 15 | L55: =K44&"/month" -> $/month
B56: Discount rate | F56: ='Systems Table'!N56 -> 5 | G56: % | K56: 5 | L56: %
B57: Inflation | F57: ='Systems Table'!N57 -> 3 | G57: % | K57: 3 | L57: %

Sheet 3 Output
B3: Results
B6: Selected System: | D6: ='Systems Table'!D9 -> Battery-free refrigerator
B16: System Design without batteries | H16: =IF('Systems Table'!N32="yes","System Design with batteries","") -> 
B18: Cooling units needed: | D18: ='Calculation Sheet'!$P$17 -> 1 | H18: =IF('Systems Table'!N32="yes","Cooling units needed:","") ->  | J18: =IF('Systems Table'!N32="yes",'Calculation Sheet'!$P$19,"") -> 
B19: Cooling units costs: | D19: ='Calculation Sheet'!$U$70 -> 650 | E19: ='Calculation Sheet'!$E$65 -> € | H19: =IF('Systems Table'!N32="yes","Cooling units costs:","") ->  | J19: =IF('Systems Table'!N32="yes",'Calculation Sheet'!$P$70,"") ->  | K19: =IF('Systems Table'!N32="yes",'Calculation Sheet'!$E$65,"") -> 
B21: Solar PV size: | D21: ='Calculation Sheet'!$P$18 -> 140 | E21: Wp | H21: =IF('Systems Table'!N32="yes","Solar PV size:","") ->  | J21: =IF('Systems Table'!N32="yes",'Calculation Sheet'!$P$20,"") ->  | K21: =IF('Systems Table'!N32="yes","Wp","") -> 
B22: Solar PV costs: | D22: ='Calculation Sheet'!$U$66 -> 154 | E22: ='Calculation Sheet'!$E$65 -> € | H22: =IF('Systems Table'!N32="yes","Solar PV costs:","") ->  | J22: =IF('Systems Table'!N32="yes",'Calculation Sheet'!$P$66,"") ->  | K22: =IF('Systems Table'!N32="yes",'Calculation Sheet'!$E$65,"") -> 
H24: =IF('Systems Table'!N32="yes","Battery size:","") ->  | J24: =IF('Systems Table'!N32="yes",'Calculation Sheet'!$P$21,"") ->  | K24: =IF('Systems Table'!N32="yes","Ah @12 V","") -> 
H25: =IF('Systems Table'!N32="yes","Battery costs:","") ->  | J25: =IF('Systems Table'!N32="yes",'Calculation Sheet'!P68,"") ->  | K25: =IF('Systems Table'!N32="yes",'Calculation Sheet'!$E$65,"") -> 
B28: Total initial investment | D28: ='Calculation Sheet'!B126 -> 1054 | E28: ='Calculation Sheet'!E65 -> € | H28: =IF('Systems Table'!N32="yes","Total initial investment","") ->  | J28: =IF('Systems Table'!N32="yes",'Calculation Sheet'!B100,"") ->  | K28: =IF('Systems Table'!N32="yes",'Calculation Sheet'!E65,"") -> 
B29: Payback period: | D29: ='Calculation Sheet'!B127 -> 2.9 | E29: years | H29: =IF('Systems Table'!N32="yes","Payback period:","") ->  | J29: =IF('Systems Table'!N32="yes",'Calculation Sheet'!B101,"") ->  | K29: =IF('Systems Table'!N32="yes","years","") -> 
B30: Net present value: | D30: ='Calculation Sheet'!B128 -> 2876.141735 | E30: ='Calculation Sheet'!E65 -> € | H30: =IF('Systems Table'!N32="yes","Net present value:","") ->  | J30: =IF('Systems Table'!N32="yes",'Calculation Sheet'!B102,"") ->  | K30: =IF('Systems Table'!N32="yes",'Calculation Sheet'!E65,"") -> 
B31: Internal rate of return: | D31: ='Calculation Sheet'!B129*100 -> 33.24404565 | E31: % | H31: =IF('Systems Table'!N32="yes","Internal rate of return:","") ->  | J31: =IF('Systems Table'!N32="yes",'Calculation Sheet'!B103*100,"") ->  | K31: =IF('Systems Table'!N32="yes","%","") -> 

Sheet Calculation Sheet (hidden)
B3: January | C3: February | D3: March | E3: April | F3: May | G3: June | H3: July | I3: August | J3: September | K3: October | L3: November | M3: December
A4: Mean daily temperature [°C]: | B4: ='1 Geographic Data'!B8 -> 25 | C4: ='1 Geographic Data'!C8 -> 26 | D4: ='1 Geographic Data'!D8 -> 26 | E4: ='1 Geographic Data'!E8 -> 26 | F4: ='1 Geographic Data'!F8 -> 25 | G4: ='1 Geographic Data'!G8 -> 23 | H4: ='1 Geographic Data'!H8 -> 22 | I4: ='1 Geographic Data'!I8 -> 23 | J4: ='1 Geographic Data'!J8 -> 24 | K4: ='1 Geographic Data'!K8 -> 25 | L4: ='1 Geographic Data'!L8 -> 25 | M4: ='1 Geographic Data'!M8 -> 25
A5: Solar irradiation [kWh/m² day]: | B5: ='1 Geographic Data'!B9 -> 6.2 | C5: ='1 Geographic Data'!C9 -> 6.6 | D5: ='1 Geographic Data'!D9 -> 6 | E5: ='1 Geographic Data'!E9 -> 5.3 | F5: ='1 Geographic Data'!F9 -> 4.6 | G5: ='1 Geographic Data'!G9 -> 4.3 | H5: ='1 Geographic Data'!H9 -> 4.4 | I5: ='1 Geographic Data'!I9 -> 4.7 | J5: ='1 Geographic Data'!J9 -> 5.6 | K5: ='1 Geographic Data'!K9 -> 5.9 | L5: ='1 Geographic Data'!L9 -> 5.6 | M5: ='1 Geographic Data'!M9 -> 5.8
A6: Thermal losses for each day [kWh]: | B6: =$E$49*$E$52*(B4-$E$39)*24/1000 -> 0.2646 | C6: =$E$49*$E$52*(C4-$E$39)*24/1000 -> 0.2772 | D6: 0.2772 | E6: 0.2772 | F6: 0.2646 | G6: 0.2394 | H6: 0.2268 | I6: 0.2394 | J6: 0.252 | K6: 0.2646 | L6: 0.2646 | M6: 0.2646
A7: Thermal Energy Liquid phase [kWh]: | B7: =$E$27*$E$31*($E$38-MAX($E$39,0))/3600 -> 0.2933 | C7: =$E$27*$E$31*($E$38-MAX($E$39,0))/3600 -> 0.2933 | D7: 0.2933 | E7: 0.2933 | F7: 0.2933 | G7: 0.2933 | H7: 0.2933 | I7: 0.2933 | J7: 0.2933 | K7: 0.2933 | L7: 0.2933 | M7: 0.2933
A8: Thermal Energy Change Phase [kWh]: | B8: =$E$27*$E$31*80/3600 -> 1.117333333 | C8: =$E$27*$E$31*80/3600 -> 1.117333333 | D8: 1.117333333 | E8: 1.117333333 | F8: 1.117333333 | G8: 1.117333333 | H8: 1.117333333 | I8: 1.117333333 | J8: 1.117333333 | K8: 1.117333333 | L8: 1.117333333 | M8: 1.117333333
A9: Thermal Energy Ice Phase [kWh]: | B9: =0.5*$E$27*$E$31*(0-MIN($E$39,0))/3600 -> 0 | C9: =0.5*$E$27*$E$31*(0-MIN($E$39,0))/3600 -> 0 | D9: 0 | E9: 0 | F9: 0 | G9: 0 | H9: 0 | I9: 0 | J9: 0 | K9: 0 | L9: 0 | M9: 0
A10: Max Power to cool down the product [kW]: | B10: =B11/$E$32 -> 0.0366625 | C10: =C11/$E$32 -> 0.0366625 | D10: 0.0366625 | E10: 0.0366625 | F10: 0.0366625 | G10: 0.0366625 | H10: 0.0366625 | I10: 0.0366625 | J10: 0.0366625 | K10: 0.0366625 | L10: 0.0366625 | M10: 0.0366625
A11: Daily Energy to cool down the product [kWh]: | B11: =IF($E$39>0,B7,B7+B8+B9)*$E$33/30 -> 0.2933 | C11: =IF($E$39>0,C7,C7+C8+C9)*$E$33/30 -> 0.2933 | D11: 0.2933 | E11: 0.2933 | F11: 0.2933 | G11: 0.2933 | H11: 0.2933 | I11: 0.2933 | J11: 0.2933 | K11: 0.2933 | L11: 0.2933 | M11: 0.2933
A12: Qtotal for each day [kW]: | B12: =B6+B11 -> 0.5579 | C12: =C6+C11 -> 0.5705 | D12: 0.5705 | E12: 0.5705 | F12: 0.5579 | G12: 0.5327 | H12: 0.5201 | I12: 0.5327 | J12: 0.5453 | K12: 0.5579 | L12: 0.5579 | M12: 0.5579
A13: COP without battery: | B13: =$E$43*(1/((B4+5+273.15)/((MIN(-5,$E$42))+273.15)-1)) -> 1.915357143 | C13: =$E$43*(1/((C4+5+273.15)/((MIN(-5,$E$42))+273.15)-1)) -> 1.862152778 | D13: 1.862152778 | E13: 1.862152778 | F13: 1.915357143 | G13: 2.031439394 | H13: 2.094921875 | I13: 2.031439394 | J13: 1.971691176 | K13: 1.915357143 | L13: 1.915357143 | M13: 1.915357143
A14: COP with battery: | B14: =$E$43*(1/((B4+5+273.15)/($E$42+273.15)-1)) -> 2.194758065 | C14: =$E$43*(1/((C4+5+273.15)/($E$42+273.15)-1)) -> 2.126171875 | D14: 2.126171875 | E14: 2.126171875 | F14: 2.194758065 | G14: 2.34612069 | H14: 2.429910714 | I14: 2.34612069 | J14: 2.267916667 | K14: 2.194758065 | L14: 2.194758065 | M14: 2.194758065
A15: Energy needed without battery [kWhel]: | B15: =B12/B13 -> 0.2912772702 | C15: =C12/C13 -> 0.30636584 | D15: 0.30636584 | E15: 0.30636584 | F15: 0.2912772702 | G15: 0.2622278575 | H15: 0.2482670147 | I15: 0.2622278575 | J15: 0.2765646094 | K15: 0.2912772702 | L15: 0.2912772702 | M15: 0.2912772702 | O15: Maximum values
A16: Engergy needed with battery [kWhel]: | B16: =B12/B14 -> 0.2541965828 | C16: =C12/C14 -> 0.2683226162 | D16: 0.2683226162 | E16: 0.2683226162 | F16: 0.2541965828 | G16: 0.2270556678 | H16: 0.2140407863 | I16: 0.2270556678 | J16: 0.2404409333 | K16: 0.2541965828 | L16: 0.2541965828 | M16: 0.2541965828 | P16: rounded
A17: Cooling units needed (no battery): | B17: =1000*B15/(70*8) -> 0.5201379825 | C17: =1000*C16/(70*8) -> 0.4791475289 | D17: 0.4791475289 | E17: 0.4791475289 | F17: 0.4539224692 | G17: 0.4054565497 | H17: 0.3822156899 | I17: 0.4054565497 | J17: 0.4293588095 | K17: 0.4539224692 | L17: 0.4539224692 | M17: 0.4539224692 | O17: =MAX(B17:M17) -> 0.5201379825 | P17: =MAX(1,IF( O17-ROUNDDOWN(O17,0)<0.2, ROUNDDOWN(O17,0), ROUNDUP(O17,0) )) -> 1
A18: PV without battery (Wp): | B18: =(1+$E$59/100)*1.7*1000*B15/B5 -> 103.8262528 | C18: =(1+$E$59/100)*1.7*1000*C15/C5 -> 102.5861373 | D18: 112.8447511 | E18: 127.7487748 | F18: 139.939732 | G18: 134.7729221 | H18: 124.6977506 | I18: 123.3028862 | J18: 109.1442476 | K18: 109.1055537 | L18: 114.9504941 | M18: 110.986684 | O18: =MAX(B18:M18) -> 139.939732 | P18: =ROUND(O18,0) -> 140
A19: Cooling units needed (with battery): | B19: =1000*B16/(70*24) -> 0.1513074897 | C19: =1000*C16/(70*24) -> 0.159715843 | D19: 0.159715843 | E19: 0.159715843 | F19: 0.1513074897 | G19: 0.1351521832 | H19: 0.12740523 | I19: 0.1351521832 | J19: 0.1431196032 | K19: 0.1513074897 | L19: 0.1513074897 | M19: 0.1513074897 | O19: 0.159715843 | P19: =MAX(1,IF( O19-ROUNDDOWN(O19,0)<0.2, ROUNDDOWN(O19,0), ROUNDUP(O19,0) )) -> 1
A20: PV with battery (Wp): | B20: =(1+$E$59/100)*1000*B16/B5 -> 53.29928348 | C20: =(1+$E$59/100)*1000*C16/C5 -> 52.8514244 | D20: 58.13656684 | E20: 65.81498133 | F20: 71.83816469 | G20: 68.64473679 | H20: 63.23932323 | I20: 62.80263153 | J20: 55.81664523 | K20: 56.00941654 | L20: 59.009921 | M20: 56.97509614 | O20: 71.83816469 | P20: 72
A21: Battery (Ah related to 12 V): | B21: =MAX($E$58,1)*(1+$E$59/100)*1000*B16/12 -> 27.53796313 | C21: =MAX($E$58,1)*(1+$E$59/100)*1000*C16/12 -> 29.06828342 | D21: 29.06828342 | E21: 29.06828342 | F21: 27.53796313 | G21: 24.59769735 | H21: 23.18775185 | I21: 24.59769735 | J21: 26.04776778 | K21: 27.53796313 | L21: 27.53796313 | M21: 27.53796313 | O21: 29.06828342 | P21: 29
A25: Product information
A27: ='2 Input'!B16 -> Total mass to be cooled | D27: Mass = | E27: ='Systems Table'!N18 -> 12 | F27: kg or l
A28: ='2 Input'!B17 -> Moisture content of the product | D28: MC = | E28: ='Systems Table'!N19 -> 100 | F28: %
A29: ='2 Input'!B18 -> or Heat capacity of the product | D29: cp = | E29: ='Systems Table'!N20 -> 0 | F29: kJ/kg K
A30: Calculated heat capacity of the product: | D30: cp = | E30: =4.19-2.3*((100-E28)/100)-0.628*((100-E28)/100)^3 -> 4.19 | F30: kJ/kg K
A31: CP due to input of the user (either calculated via MC or direct) | D31: cp = | E31: =IF(E29>0,E29,E30) -> 4.19 | F31: kJ/kg K
A32: ='2 Input'!B25 -> Time to cool down the product | D32: t = | E32: ='Systems Table'!N27 -> 8 | F32: h
A33: ='2 Input'!B26 -> How often do you cool down the product | E33: ='Systems Table'!N28 -> 30
A36: Temperature information
A38: ='2 Input'!B23 -> Initial temperature of the product | D38: Ti = | E38: ='Systems Table'!N25 -> 25 | F38: °C
A39: ='2 Input'!B24 -> Final temperature of the product | D39: Tm = | E39: ='Systems Table'!N26 -> 4 | F39: °C
A41: Maximum Temperature within the year: | D41: Tyearmax = | E41: =MAX(B4:M4) -> 26 | F41: °C
A42: Temperature within the cooling device ( Final temp - 5°C): | D42: Tcold = | E42: =E39-5 -> -1 | F42: °C
A43: Alpha - value: | E43: 0.25
D44: COP worst case = | E44: =$E$43*(1/((E41+273.15)/($E$42+273.15)-1)) -> 2.519907407
A47: Isolation material
A49: ='2 Input'!B37 -> Area of the cooling room | D49: A = | E49: ='Systems Table'!N38 -> 0.9 | F49: m²
A50: ='2 Input'!B38 -> Thermal conductivity of insulation | D50: k / l = | E50: ='Systems Table'!N39 -> 0.035 | F50: W/m K
A51: ='2 Input'!B39 -> Thickness of insulation | D51: L = | E51: ='Systems Table'!N40 -> 0.06 | F51: m
D52: U = | E52: =E50/E51 -> 0.5833333333
A56: System information
A58: ='2 Input'!B32 -> Autonomy of the system | E58: ='Systems Table'!N33 -> 1
A59: ='2 Input'!B33 -> System losses | E59: ='Systems Table'!N34 -> 30 | F59: %
A63: Economic information | H63: Income | N63: System with Battery | S63: System without Battery
A65: ='2 Input'!B44 -> Currency used for calculation | E65: ='Systems Table'!N45 -> €
A66: ='2 Input'!B45 -> Specific cost of PV | E66: ='Systems Table'!N46 -> 1.1 | F66: =E65&"/Wp" -> €/Wp | H66: Additional income per product: | K66: =E74*E27*E33*12 -> 388.8 | L66: =E65&"/year" -> €/year | N66: Total PV Costs: | P66: =P20*E66 -> 79.2 | S66: Total PV Costs: | U66: =P18*E66 -> 154
A67: ='2 Input'!B46 -> PV lifetime | E67: ='Systems Table'!N47 -> 21 | F67: years | H67: Additional income per year: | K67: =E75*12 -> 0 | L67: =E65&"/year" -> €/year | N67: Lifetime PV: | P67: =E67 -> 21 | S67: Lifetime PV: | U67: =E67 -> 21
A68: ='2 Input'!B47 -> Specif cost of battery | E68: ='Systems Table'!N48 -> 2 | F68: =E65&"/Ah@12V" -> €/Ah@12V | H68: Total income : | K68: =SUM(K66:K67) -> 388.8 | L68: =E65&"/year" -> €/year | N68: Total Battery costs: | P68: =P21*E68 -> 58
A69: ='2 Input'!B48 -> Battery lifetime | E69: ='Systems Table'!N49 -> 5 | F69: years | N69: Lifetime battery: | P69: =E69 -> 5
A70: ='2 Input'!B49 -> Cost of solar cooling unit | E70: ='Systems Table'!N50 -> 650 | F70: =E65 -> € | N70: Total solar cooling unit costs: | P70: =P19*E70 -> 650 | S70: Total solar cooling unit costs: | U70: =P17*E70 -> 650
A71: ='2 Input'!B50 -> Solar cooling unit lifetime | E71: ='Systems Table'!N51 -> 12 | F71: years | N71: Lifetime cooling unit: | P71: =E71 -> 12 | S71: Lifetime cooling unit: | U71: =E71 -> 12
A72: ='2 Input'!B51 -> Material & construction costs for cooling box | E72: ='Systems Table'!N52 -> 250 | F72: =E65 -> € | N72: Material & construction: | P72: =E72 -> 250 | S72: Material & construction: | U72: =E72 -> 250
A73: ='2 Input'!B52 -> Maintenance costs per year | E73: ='Systems Table'!N53 -> 25 | F73: =E65&"/year" -> €/year | N73: Maintenance per year: | P73: =E73 -> 25 | S73: Maintenance per year: | U73: =E73 -> 25
A74: ='2 Input'!B54 -> Additional income per product unit | E74: ='Systems Table'!N54 -> 0.09 | F74: =E65&"/kg or l" -> €/kg or l
A75: ='2 Input'!B55 -> Additional income per month | E75: ='Systems Table'!N55 -> 0 | F75: =E65&"/year" -> €/year
A76: ='2 Input'!B56 -> Discount rate | E76: ='Systems Table'!N56 -> 5 | F76: %
A77: ='2 Input'!B57 -> Inflation | E77: ='Systems Table'!N57 -> 3 | F77: %
B80: Economic Analysis: System with battery | F80: With batteries? | H80: ='Systems Table'!N32 -> No
D82: =IF(E98<0,0,1) -> 0 | E82: 1 | F82: 1 | G82: 1 | H82: 1 | I82: 1 | J82: 1 | K82: 1 | L82: 1 | M82: 1 | N82: 1 | O82: 1 | P82: 1 | Q82: 1 | R82: 1 | S82: 1 | T82: 1 | U82: 1 | V82: 1 | W82: 1 | X82: 1 | Y82: 1 | Z82: 1 | AA82: 1 | AB82: 1
B83: Year | C83: 0 | D83: 1 | E83: 2 | F83: 3 | G83: 4 | H83: 5 | I83: 6 | J83: 7 | K83: 8 | L83: 9 | M83: 10 | N83: 11 | O83: 12 | P83: 13 | Q83: 14 | R83: 15 | S83: 16 | T83: 17 | U83: 18 | V83: 19 | W83: 20 | X83: 21 | Y83: 22 | Z83: 23 | AA83: 24 | AB83: 25
A85: PV Costs | C85: =P66 -> 79.2 | D85: =IF(MOD(D83,$P$67)=0,$C$85*(1+($E$77/100))^D83,0) -> 0 | E85: 0 | F85: 0 | G85: 0 | H85: 0 | I85: 0 | J85: 0 | K85: 0 | L85: 0 | M85: 0 | N85: 0 | O85: 0 | P85: 0 | Q85: 0 | R85: 0 | S85: 0 | T85: 0 | U85: 0 | V85: 0 | W85: 0 | X85: 147.3353301 | Y85: 0 | Z85: 0 | AA85: 0 | AB85: 0
A86: Battery Costs | C86: =P68 -> 58 | D86: =IF(MOD(D83,$P$69)=0,$C$86*(1+($E$77/100))^D83,0) -> 0 | E86: 0 | F86: 0 | G86: 0 | H86: 67.23789631 | I86: 0 | J86: 0 | K86: 0 | L86: 0 | M86: 77.94715 | N86: 0 | O86: 0 | P86: 0 | Q86: 0 | R86: 90.36211016 | S86: 0 | T86: 0 | U86: 0 | V86: 0 | W86: 104.7544516 | X86: 0 | Y86: 0 | Z86: 0 | AA86: 0 | AB86: 121.4391199
A87: Solar cooling units cost | C87: =P70 -> 650 | D87: =IF(MOD(D83,$P$71)=0,$C$87*(1+($E$77/100))^D83,0) -> 0 | E87: 0 | F87: 0 | G87: 0 | H87: 0 | I87: 0 | J87: 0 | K87: 0 | L87: 0 | M87: 0 | N87: 0 | O87: 926.7445765 | P87: 0 | Q87: 0 | R87: 0 | S87: 0 | T87: 0 | U87: 0 | V87: 0 | W87: 0 | X87: 0 | Y87: 0 | Z87: 0 | AA87: 1321.316169 | AB87: 0
A88: Material & Construction | C88: =P72 -> 250 | D88: 0 | E88: 0 | F88: 0 | G88: 0 | H88: 0 | I88: 0 | J88: 0 | K88: 0 | L88: 0 | M88: 0 | N88: 0 | O88: 0 | P88: 0 | Q88: 0 | R88: 0 | S88: 0 | T88: 0 | U88: 0 | V88: 0 | W88: 0 | X88: 0 | Y88: 0 | Z88: 0 | AA88: 0 | AB88: 0
A89: Maintenance costs | C89: 0 | D89: =P73 -> 25 | E89: =$D$89*(1+($E$77/100))^(E83-1) -> 25.75 | F89: =$D$89*(1+($E$77/100))^(F83-1) -> 26.5225 | G89: 27.318175 | H89: 28.13772025 | I89: 28.98185186 | J89: 29.85130741 | K89: 30.74684664 | L89: 31.66925203 | M89: 32.6193296 | N89: 33.59790948 | O89: 34.60584677 | P89: 35.64402217 | Q89: 36.71334284 | R89: 37.81474312 | S89: 38.94918542 | T89: 40.11766098 | U89: 41.32119081 | V89: 42.56082653 | W89: 43.83765133 | X89: 45.15278087 | Y89: 46.50736429 | Z89: 47.90258522 | AA89: 49.33966278 | AB89: 50.81985266
A91: Expenses per year: | C91: =SUM(C85:C90) -> 1037.2 | D91: =SUM(D85:D90) -> 25 | E91: 25.75 | F91: 26.5225 | G91: 27.318175 | H91: 95.37561656 | I91: 28.98185186 | J91: 29.85130741 | K91: 30.74684664 | L91: 31.66925203 | M91: 110.5664796 | N91: 33.59790948 | O91: 961.3504232 | P91: 35.64402217 | Q91: 36.71334284 | R91: 128.1768533 | S91: 38.94918542 | T91: 40.11766098 | U91: 41.32119081 | V91: 42.56082653 | W91: 148.5921029 | X91: 192.4881109 | Y91: 46.50736429 | Z91: 47.90258522 | AA91: 1370.655832 | AB91: 172.2589726
A92: Expenses per year accumulated: | C92: =C91 -> 1037.2 | D92: =SUM($C$91:D91) -> 1062.2 | E92: =SUM($C$91:E91) -> 1087.95 | F92: =SUM($C$91:F91) -> 1114.4725 | G92: =SUM($C$91:G91) -> 1141.790675 | H92: =SUM($C$91:H91) -> 1237.166292 | I92: =SUM($C$91:I91) -> 1266.148143 | J92: =SUM($C$91:J91) -> 1295.999451 | K92: =SUM($C$91:K91) -> 1326.746297 | L92: =SUM($C$91:L91) -> 1358.41555 | M92: =SUM($C$91:M91) -> 1468.982029 | N92: =SUM($C$91:N91) -> 1502.579939 | O92: =SUM($C$91:O91) -> 2463.930362 | P92: =SUM($C$91:P91) -> 2499.574384 | Q92: =SUM($C$91:Q91) -> 2536.287727 | R92: =SUM($C$91:R91) -> 2664.46458 | S92: =SUM($C$91:S91) -> 2703.413766 | T92: =SUM($C$91:T91) -> 2743.531426 | U92: =SUM($C$91:U91) -> 2784.852617 | V92: =SUM($C$91:V91) -> 2827.413444 | W92: =SUM($C$91:W91) -> 2976.005547 | X92: =SUM($C$91:X91) -> 3168.493658 | Y92: =SUM($C$91:Y91) -> 3215.001022 | Z92: =SUM($C$91:Z91) -> 3262.903607 | AA92: =SUM($C$91:AA91) -> 4633.559439 | AB92: =SUM($C$91:AB91) -> 4805.818412
A93: Expenses per year accumulated (for hiding in the diagramm): | C93: =IF($H$80="YES",C92,NA()) ->  | D93: =IF($H$80="YES",D92,NA()) -> 
A95: Accumulated income per year: | C95: 0 | D95: =K68 -> 388.8 | E95: =$K$68+D95 -> 777.6 | F95: =$K$68+E95 -> 1166.4 | G95: 1555.2 | H95: 1944 | I95: 2332.8 | J95: 2721.6 | K95: 3110.4 | L95: 3499.2 | M95: 3888 | N95: 4276.8 | O95: 4665.6 | P95: 5054.4 | Q95: 5443.2 | R95: 5832 | S95: 6220.8 | T95: 6609.6 | U95: 6998.4 | V95: 7387.2 | W95: 7776 | X95: 8164.8 | Y95: 8553.6 | Z95: 8942.4 | AA95: 9331.2 | AB95: 9720
A96: Income per year: | D96: =$K$68 -> 388.8 | E96: =$K$68 -> 388.8 | F96: 388.8 | G96: 388.8 | H96: 388.8 | I96: 388.8 | J96: 388.8 | K96: 388.8 | L96: 388.8 | M96: 388.8 | N96: 388.8 | O96: 388.8 | P96: 388.8 | Q96: 388.8 | R96: 388.8 | S96: 388.8 | T96: 388.8 | U96: 388.8 | V96: 388.8 | W96: 388.8 | X96: 388.8 | Y96: 388.8 | Z96: 388.8 | AA96: 388.8 | AB96: 388.8
A97: Cashfow per year: | C97: =C95-C92 -> -1037.2 | D97: =D96-D91 -> 363.8 | E97: =E96-E91 -> 363.05 | F97: 362.2775 | G97: 361.481825 | H97: 293.4243834 | I97: 359.8181481 | J97: 358.9486926 | K97: 358.0531534 | L97: 357.130748 | M97: 278.2335204 | N97: 355.2020905 | O97: -572.5504232 | P97: 353.1559778 | Q97: 352.0866572 | R97: 260.6231467 | S97: 349.8508146 | T97: 348.682339 | U97: 347.4788092 | V97: 346.2391735 | W97: 240.2078971 | X97: 196.3118891 | Y97: 342.2926357 | Z97: 340.8974148 | AA97: -981.855832 | AB97: 216.5410274
A98: Accumulated cashflow per year (for payback calculation) | C98: =C97 -> -1037.2 | D98: =C98+D97 -> -673.4 | E98: =D98+E97 -> -310.35 | F98: 51.9275 | G98: 413.409325 | H98: 706.8337084 | I98: 1066.651857 | J98: 1425.600549 | K98: 1783.653703 | L98: 2140.78445 | M98: 2419.017971 | N98: 2774.220061 | O98: 2201.669638 | P98: 2554.825616 | Q98: 2906.912273 | R98: 3167.53542 | S98: 3517.386234 | T98: =S98+T97 -> 3866.068574 | U98: =T98+U97 -> 4213.547383 | V98: =U98+V97 -> 4559.786556 | W98: =V98+W97 -> 4799.994453 | X98: =W98+X97 -> 4996.306342 | Y98: =X98+Y97 -> 5338.598978 | Z98: =Y98+Z97 -> 5679.496393 | AA98: =Z98+AA97 -> 4697.640561 | AB98: =AA98+AB97 -> 4914.181588
C99: =C83+ABS(C98)/(ABS(C98)+ABS(D98)) -> 0.6063369578 | D99: 1.684523507 | E99: =E83+ABS(E98)/(ABS(E98)+ABS(F98)) -> 2.856663745 | F99: =F83+ABS(F98)/(ABS(F98)+ABS(G98)) -> 3.111591211 | G99: 4.36903539 | H99: 5.398556223 | I99: 6.427987091 | J99: 7.444215521 | K99: 8.454499124 | L99: 9.469490617 | M99: 10.46580148 | N99: 11.55753247 | O99: 12.46287645 | P99: 13.46776789 | Q99: 14.47854758 | R99: 15.47383284 | S99: 16.47638759 | T99: 17.47849658 | U99: 18.48026753 | V99: 19.48716808 | W99: 20.48998031 | X99: 21.48343997 | Y99: 22.48453011 | Z99: 23.54730861 | AA99: 24.48873569 | AB99: 26
A100: Total initial investment costs: | B100: =SUM(C85:C89) -> 1037.2 | C100: =E65 -> €
A101: Payback period: | B101: =ROUND(IF(W98<0,25,HLOOKUP(1,D82:AB99,18,FALSE)),1) -> 2.9 | C101: years
A102: Net Present Value: | B102: =C97+NPV((E76/100),D97:W97) -> 2709.459725 | C102: =E65 -> €
A103: Internal Rate of Return: | B103: =IRR(C97:W97) -> 0.3306024838
B108: Economic Analysis: System without battery
D110: =IF(E124<0,0,1) -> 0 | E110: =IF(F124<0,0,1) -> 1 | F110: 1 | G110: 1 | H110: 1 | I110: 1 | J110: 1 | K110: 1 | L110: 1 | M110: 1 | N110: 1 | O110: 1 | P110: 1 | Q110: 1 | R110: 1 | S110: 1 | T110: 1 | U110: 1 | V110: 1 | W110: 1 | X110: 1 | Y110: 1 | Z110: 1 | AA110: 1 | AB110: 1
B111: Year | C111: 0 | D111: 1 | E111: 2 | F111: 3 | G111: 4 | H111: 5 | I111: 6 | J111: 7 | K111: 8 | L111: 9 | M111: 10 | N111: 11 | O111: 12 | P111: 13 | Q111: 14 | R111: 15 | S111: 16 | T111: 17 | U111: 18 | V111: 19 | W111: 20 | X111: 21 | Y111: 22 | Z111: 23 | AA111: 24 | AB111: 25
AE112: Titles for the diagramm:
A113: PV Costs | C113: =U66 -> 154 | D113: =IF(MOD(D111,$U$67)=0,$C$113*(1+($E$77/100))^D111,0) -> 0 | E113: 0 | F113: 0 | G113: 0 | H113: 0 | I113: 0 | J113: 0 | K113: 0 | L113: 0 | M113: 0 | N113: 0 | O113: 0 | P113: 0 | Q113: 0 | R113: 0 | S113: 0 | T113: 0 | U113: 0 | V113: 0 | W113: 0 | X113: 286.485364 | Y113: 0 | Z113: 0 | AA113: 0 | AB113: 0
A114: Solar cooling units cost | C114: =U70 -> 650 | D114: =IF(MOD(D111,$U$71)=0,$C$114*(1+($E$77/100))^D111,0) -> 0 | E114: 0 | F114: 0 | G114: 0 | H114: 0 | I114: 0 | J114: 0 | K114: 0 | L114: 0 | M114: 0 | N114: 0 | O114: 926.7445765 | P114: 0 | Q114: 0 | R114: 0 | S114: 0 | T114: 0 | U114: 0 | V114: 0 | W114: 0 | X114: 0 | Y114: 0 | Z114: 0 | AA114: 1321.316169 | AB114: 0 | AE114: Accumulated income
A115: Material & Construction | C115: =U72 -> 250 | D115: 0 | E115: 0 | F115: 0 | G115: 0 | H115: 0 | I115: 0 | J115: 0 | K115: 0 | L115: 0 | M115: 0 | N115: 0 | O115: 0 | P115: 0 | Q115: 0 | R115: 0 | S115: 0 | T115: 0 | U115: 0 | V115: 0 | W115: 0 | X115: 0 | Y115: 0 | Z115: 0 | AA115: 0 | AB115: 0 | AE115: =IF(H80="Yes","Accumulated system costs with batteries","") -> 
A116: Maintenance costs | C116: 0 | D116: =U73 -> 25 | E116: =$D$116*(1+($E$77/100))^(E111-1) -> 25.75 | F116: 26.5225 | G116: 27.318175 | H116: 28.13772025 | I116: 28.98185186 | J116: 29.85130741 | K116: 30.74684664 | L116: 31.66925203 | M116: 32.6193296 | N116: 33.59790948 | O116: 34.60584677 | P116: 35.64402217 | Q116: 36.71334284 | R116: 37.81474312 | S116: 38.94918542 | T116: 40.11766098 | U116: 41.32119081 | V116: 42.56082653 | W116: 43.83765133 | X116: 45.15278087 | Y116: 46.50736429 | Z116: 47.90258522 | AA116: 49.33966278 | AB116: 50.81985266 | AE116: Accumulated system costs without batteries
A118: Expenses per year: | C118: =SUM(C113:C117) -> 1054 | D118: 25 | E118: 25.75 | F118: 26.5225 | G118: 27.318175 | H118: 28.13772025 | I118: 28.98185186 | J118: 29.85130741 | K118: 30.74684664 | L118: 31.66925203 | M118: 32.6193296 | N118: 33.59790948 | O118: 961.3504232 | P118: 35.64402217 | Q118: 36.71334284 | R118: 37.81474312 | S118: 38.94918542 | T118: 40.11766098 | U118: 41.32119081 | V118: 42.56082653 | W118: 43.83765133 | X118: 331.6381449 | Y118: 46.50736429 | Z118: 47.90258522 | AA118: 1370.655832 | AB118: 50.81985266
A119: Expenses per year accumulated: | C119: =C118 -> 1054 | D119: =SUM($C$118:D118) -> 1079 | E119: =SUM($C$118:E118) -> 1104.75 | F119: =SUM($C$118:F118) -> 1131.2725 | G119: =SUM($C$118:G118) -> 1158.590675 | H119: =SUM($C$118:H118) -> 1186.728395 | I119: =SUM($C$118:I118) -> 1215.710247 | J119: =SUM($C$118:J118) -> 1245.561555 | K119: =SUM($C$118:K118) -> 1276.308401 | L119: =SUM($C$118:L118) -> 1307.977653 | M119: =SUM($C$118:M118) -> 1340.596983 | N119: =SUM($C$118:N118) -> 1374.194892 | O119: =SUM($C$118:O118) -> 2335.545315 | P119: =SUM($C$118:P118) -> 2371.189338 | Q119: =SUM($C$118:Q118) -> 2407.90268 | R119: =SUM($C$118:R118) -> 2445.717424 | S119: =SUM($C$118:S118) -> 2484.666609 | T119: =SUM($C$118:T118) -> 2524.78427 | U119: =SUM($C$118:U118) -> 2566.105461 | V119: =SUM($C$118:V118) -> 2608.666287 | W119: =SUM($C$118:W118) -> 2652.503939 | X119: =SUM($C$118:X118) -> 2984.142084 | Y119: =SUM($C$118:Y118) -> 3030.649448 | Z119: =SUM($C$118:Z118) -> 3078.552033 | AA119: =SUM($C$118:AA118) -> 4449.207865 | AB119: =SUM($C$118:AB118) -> 4500.027718
A121: Accumulated investment per year: | C121: 0 | D121: =K68 -> 388.8 | E121: =$K$68+D121 -> 777.6 | F121: =$K$68+E121 -> 1166.4 | G121: 1555.2 | H121: 1944 | I121: 2332.8 | J121: 2721.6 | K121: 3110.4 | L121: 3499.2 | M121: 3888 | N121: 4276.8 | O121: 4665.6 | P121: 5054.4 | Q121: 5443.2 | R121: 5832 | S121: 6220.8 | T121: 6609.6 | U121: 6998.4 | V121: 7387.2 | W121: 7776 | X121: 8164.8 | Y121: 8553.6 | Z121: 8942.4 | AA121: 9331.2 | AB121: 9720
A122: Income per year: | D122: =$K$68 -> 388.8 | E122: =$K$68 -> 388.8 | F122: 388.8 | G122: 388.8 | H122: 388.8 | I122: 388.8 | J122: 388.8 | K122: 388.8 | L122: 388.8 | M122: 388.8 | N122: 388.8 | O122: 388.8 | P122: 388.8 | Q122: 388.8 | R122: 388.8 | S122: 388.8 | T122: 388.8 | U122: 388.8 | V122: 388.8 | W122: 388.8 | X122: 388.8 | Y122: 388.8 | Z122: 388.8 | AA122: 388.8 | AB122: 388.8
A123: Cashfow per year: | C123: =C121-C119 -> -1054 | D123: =D122-D118 -> 363.8 | E123: =E122-E118 -> 363.05 | F123: 362.2775 | G123: 361.481825 | H123: 360.6622798 | I123: 359.8181481 | J123: 358.9486926 | K123: 358.0531534 | L123: 357.130748 | M123: 356.1806704 | N123: 355.2020905 | O123: -572.5504232 | P123: 353.1559778 | Q123: 352.0866572 | R123: 350.9852569 | S123: 349.8508146 | T123: 348.682339 | U123: 347.4788092 | V123: 346.2391735 | W123: 344.9623487 | X123: 57.16185509 | Y123: 342.2926357 | Z123: 340.8974148 | AA123: -981.855832 | AB123: 337.9801473
A124: Accumulated cashflow per year (for payback calculation) | C124: =C123 -> -1054 | D124: =C124+D123 -> -690.2 | E124: =D124+E123 -> -327.15 | F124: 35.1275 | G124: 396.609325 | H124: 757.2716048 | I124: 1117.089753 | J124: 1476.038445 | K124: 1834.091599 | L124: 2191.222347 | M124: 2547.403017 | N124: 2902.605108 | O124: 2330.054685 | P124: 2683.210662 | Q124: 3035.29732 | R124: 3386.282576 | S124: 3736.133391 | T124: 4084.81573 | U124: 4432.294539 | V124: 4778.533713 | W124: 5123.496061 | X124: 5180.657916 | Y124: 5522.950552 | Z124: 5863.847967 | AA124: 4881.992135 | AB124: 5219.972282
D125: =D111+ABS(D124)/(ABS(D124)+ABS(E124)) -> 1.678429252 | E125: =E111+ABS(E124)/(ABS(E124)+ABS(F124)) -> 2.903037037 | F125: 3.081363224 | G125: 4.343717722 | H125: 5.404015801 | I125: 6.430788479 | J125: 7.445915546 | K125: 8.455639392 | L125: 9.4624173 | M125: 10.4674127 | N125: 11.55470931 | O125: 12.46477785 | P125: 13.46921516 | Q125: 14.47267142 | R125: 15.47544016 | S125: 16.47770844 | T125: 17.47960113 | U125: 18.48120478 | V125: 19.48258123 | W125: 20.49722627 | X125: 21.48401041 | Y125: 22.48503102 | Z125: 23.54568539 | AA125: 24.48327156 | AB125: 26
A126: Total initial investment costs: | B126: =SUM(C113:C117) -> 1054 | C126: =E65 -> €
A127: Payback period: | B127: =ROUND(IF(W124<0,25,HLOOKUP(1,D110:AB125,16,FALSE)),1) -> 2.9 | C127: years
A128: Net Present Value: | B128: =C123+NPV((E76/100),D123:W123) -> 2876.141735 | C128: =E65 -> €
A129: Internal Rate of Return: | B129: =IRR(C123:W123) -> 0.3324404565

Sheet Systems Table (hidden)
D2: System | E2: Number | H2: Batteries | K2: Changing pictures:
A3: Possible Systems to choose: | D3: Smart ice-maker | E3: 1 | H3: Yes | L3: =D3 -> Smart ice-maker | M3: =IF($E$9=E3,1,0) -> 0
D4: Battery-free refrigerator | E4: 2 | H4: No | L4: =D4 -> Battery-free refrigerator | M4: =IF($E$9=E4,1,0) -> 1
D5: Water chiller for milk cooling | E5: 3 | L5: Water chiller for milk cooling | M5: =IF($E$9=E5,1,0) -> 0
D6: Water chiller for cold rooms | E6: 4 | L6: Water chiller for cold rooms | M6: =IF($E$9=E6,1,0) -> 0
D7: Own system design | E7: 5 | L7: Own system design | M7: =IF($E$9=E7,1,0) -> 0
A9: Selected value: | D9: ='2 Input'!E11 -> Battery-free refrigerator | E9: =VLOOKUP(D9,D3:E7,2,FALSE) -> 2
D13: System Data | G13: =D3 -> Smart ice-maker | H13: =D4 -> Battery-free refrigerator | I13: =D5 -> Water chiller for milk cooling | J13: =D6 -> Water chiller for cold rooms | K13: =D7 -> Own system design | N13: Selected values depending on user choice (are used for Calculation sheet)
C14: 1 | D14: Number | G14: =E3 -> 1 | H14: =E4 -> 2 | I14: =E5 -> 3 | J14: =E6 -> 4 | K14: =E7 -> 5
C15: 2
C16: 3 | D16: Product information
C17: 4
C18: 5 | D18: ='2 Input'!B16 -> Total mass to be cooled | F18: Mass = | G18: 20 | H18: 12 | I18: 70 | J18: 1000 | K18: ='2 Input'!K16 -> 10 | L18: kg or l | N18: =HLOOKUP($E$9,$G$14:$K$59,C18) -> 12
C19: 6 | D19: ='2 Input'!B17 -> Moisture content of the product | F19: MC = | G19: 100 | H19: 100 | I19: 99 | J19: 86 | K19: ='2 Input'!K17 -> 100 | L19: % wet based | N19: =HLOOKUP($E$9,$G$14:$K$59,C19) -> 100
C20: 7 | D20: ='2 Input'!B18 -> or Heat capacity of the product | F20: cp = | K20: ='2 Input'!K18 -> 0 | L20: kJ/kg K | N20: 0
C21: 8
C22: 9
C23: 10 | D23: Temperature information
C24: 11
C25: 12 | D25: ='2 Input'!B23 -> Initial temperature of the product | F25: Ti = | G25: 20 | H25: 25 | I25: 35 | J25: 25 | K25: ='2 Input'!K23 -> 25 | L25: °C | N25: 25
C26: 13 | D26: ='2 Input'!B24 -> Final temperature of the product | F26: Tm = | G26: -10 | H26: 4 | I26: 4 | J26: 12 | K26: ='2 Input'!K24 -> 4 | L26: °C | N26: 4
C27: 14 | D27: ='2 Input'!B25 -> Time to cool down the product | F27: t = | G27: 24 | H27: 8 | I27: 4 | J27: 24 | K27: ='2 Input'!K25 -> 10 | L27: h | N27: 8
C28: 15 | D28: ='2 Input'!B26 -> How often do you cool down the product | G28: 30 | H28: 30 | I28: 30 | J28: 1 | K28: ='2 Input'!K26 -> 30 | L28: per month | N28: 30
C29: 16
C30: 17
C31: 18 | D31: System information
C32: 19 | G32: Yes | H32: No | I32: Yes | J32: Yes | K32: ='2 Input'!K31 -> Yes | N32: No
C33: 20 | D33: ='2 Input'!B32 -> Autonomy of the system | G33: 1 | H33: 1 | I33: 1 | J33: 1 | K33: ='2 Input'!K32 -> 1 | L33: days | N33: 1
C34: 21 | D34: ='2 Input'!B33 -> System losses | G34: 25 | H34: 30 | I34: 25 | J34: 25 | K34: ='2 Input'!K33 -> 25 | L34: % | N34: 30
C35: 22
C36: 23 | D36: Isolation material
C37: 24
C38: 25 | D38: ='2 Input'!B37 -> Area of the cooling room | F38: A = | G38: 2.12 | H38: 0.9 | I38: 5 | J38: 24 | K38: ='2 Input'!K37 -> 2 | L38: m² | N38: 0.9
C39: 26 | D39: ='2 Input'!B38 -> Thermal conductivity of insulation | F39: k / l = | G39: 0.035 | H39: 0.035 | I39: 0.035 | J39: 0.035 | K39: ='2 Input'!K38 -> 0.035 | L39: W/m K | N39: 0.035
C40: 27 | D40: ='2 Input'!B39 -> Thickness of insulation | F40: L = | G40: 0.1 | H40: 0.06 | I40: 0.1 | J40: 0.1 | K40: ='2 Input'!K39 -> 0.1 | L40: m | N40: 0.06
C41: 28
C42: 29
C43: 30 | D43: Economic information
C44: 31
C45: 32 | D45: ='2 Input'!B44 -> Currency used for calculation | G45: € | H45: € | I45: € | J45: € | K45: ='2 Input'!K44 -> $ | N45: €
C46: 33 | D46: ='2 Input'!B45 -> Specific cost of PV | G46: 1.1 | H46: 1.1 | I46: 1.1 | J46: 1.1 | K46: ='2 Input'!K45 -> 1.1 | L46: =N45&"/Wp" -> €/Wp | N46: 1.1
C47: 34 | D47: ='2 Input'!B46 -> PV lifetime | G47: 21 | H47: 21 | I47: 21 | J47: 21 | K47: ='2 Input'!K46 -> 21 | L47: years | N47: 21
C48: 35 | D48: ='2 Input'!B47 -> Specif cost of battery | G48: 2 | H48: 2 | I48: 2 | J48: 2 | K48: ='2 Input'!K47 -> 2 | L48: =N45&"/Ah@12V" -> €/Ah@12V | N48: 2
C49: 36 | D49: ='2 Input'!B48 -> Battery lifetime | G49: 4 | H49: 5 | I49: 4 | J49: 4 | K49: ='2 Input'!K48 -> 4 | L49: years | N49: 5
C50: 37 | D50: ='2 Input'!B49 -> Cost of solar cooling unit | G50: 650 | H50: 650 | I50: 650 | J50: 650 | K50: ='2 Input'!K49 -> 650 | L50: =N45 -> € | N50: 650
C51: 38 | D51: ='2 Input'!B50 -> Solar cooling unit lifetime | G51: 12 | H51: 12 | I51: 12 | J51: 12 | K51: ='2 Input'!K50 -> 12 | L51: years | N51: 12
C52: 39 | D52: ='2 Input'!B51 -> Material & construction costs for cooling box | G52: 350 | H52: 250 | I52: 450 | J52: 450 | K52: ='2 Input'!K51 -> 300 | L52: =N45 -> € | N52: 250
C53: 40 | D53: ='2 Input'!B52 -> Maintenance costs per year | G53: 50 | H53: 25 | I53: 75 | J53: 75 | K53: ='2 Input'!K52 -> 30 | L53: =N45&"/year" -> €/year | N53: 25
C54: 41 | D54: ='2 Input'!B54 -> Additional income per product unit | G54: 0.15 | H54: 0.09 | I54: 0.05 | J54: 0.05 | K54: ='2 Input'!K54 -> 0.07 | N54: 0.09
C55: 42 | D55: ='2 Input'!B55 -> Additional income per month | G55: 0 | H55: 0 | I55: 0 | J55: 0 | K55: ='2 Input'!K55 -> 15 | L55: =N45&"/year" -> €/year | N55: 0
C56: 43 | D56: ='2 Input'!B56 -> Discount rate | G56: 5 | H56: 5 | I56: 5 | J56: 5 | K56: ='2 Input'!K56 -> 5 | L56: % | N56: 5
C57: 44 | D57: ='2 Input'!B57 -> Inflation | G57: 3 | H57: 3 | I57: 3 | J57: 3 | K57: ='2 Input'!K57 -> 3 | L57: % | N57: 3
C58: 45
C59: 46
